[Event "IMSA Blitz Men 2019"]
[Site "Hengshui"]
[Date "2019.05.17"]
[Round "1.2"]
[White "Cheparinov, Ivan"]
[Black "Dominguez Perez, Leinier"]
[Result "1/2-1/2"]
[ECO "E06"]
[WhiteElo "2667"]
[BlackElo "2750"]
[Annotator "RC"]
[PlyCount "77"]
[EventDate "2019.05.17"]
[EventType "blitz"]
[EventCountry "CHN"]
[SourceTitle "playchess.com"]
[Source "ChessBase"]
[SourceQuality "1"]
[TimeControl "180+2"]

1. d4 {[%emt 0:00:00]} d5 {[%emt 0:00:00]} 2. Nf3 {[%emt 0:00:01]} Nf6 {[%emt 0:00:00]} 3. c4 {[%emt 0:00:01]} e6 {[%emt 0:00:01]} 4. g3 {[%emt 0:00:02]} Be7 {[%emt 0:00:02]} 5. Bg2 {[%emt 0:00:02]} O-O {[%emt 0:00:02]} 6. O-O dxc4 {[%emt 0:00:01]} 7. Qc2 {[%emt 0:00:03]} a6 {[%emt 0:00:01]} 8. a4 {[%emt 0:00:02]} Bd7 {[%emt 0:00:02]} 9. Qxc4 {[%emt 0:00:03]} Bc6 {[%emt 0:00:01]} 10. Bg5 {[%emt 0:00:02]} Nbd7 {[%emt 0:00:11]} 11. Nc3 {[%emt 0:00:17]} h6 {[%emt 0:00:01]} 12. Bxf6 {[%emt 0:00:09]} Nxf6 {[%emt 0:00:01]} 13. b4 {[%emt 0:00:08]} Bd5 {[%emt 0:00:02]} 14. Nxd5 {[%emt 0:00:02]} exd5 {[%emt 0:00:01]} 15. Qb3 {[%emt 0:00:03]} Bd6 {[%emt 0:00:01]} 16. e3 {[%emt 0:00:06]} Qe7 {[%emt 0:00:11]} 17. b5 {[%emt 0:00:04]} axb5 {[%emt 0:00:12]} 18. axb5 {[%emt 0:00:01]} g6 {[%emt 0:00:45]} 19. Ra2 {[%emt 0:00:08]} Qe6 {[%emt 0:00:29]} 20. Rfa1 {[%emt 0:00:09]} Rab8 {[%emt 0:00:05]} 21. Ra7 {[%emt 0:00:16]} h5 {[%emt 0:00:02]} 22. Rc1 {[%emt 0:00:12]} Kg7 {[%emt 0:00:07]} 23. Qb2 {[%emt 0:00:14]} Rfe8 {[%emt 0:00:11]} 24. Rc2 {[%emt 0:00:18]} Ng4 {[%emt 0:00:07]} 25. Qb3 {[%emt 0:00:06]} Nf6 {[%emt 0:00:20]} 26. Ra1 {[%emt 0:00:05]} Ra8 {[%emt 0:00:04]} 27. Rca2 {[%emt 0:00:03]} Rab8 {[%emt 0:00:02]} 28. Rc2 {[%emt 0:00:22]} Re7 {[%emt 0:00:04]} 29. Ra7 {[%emt 0:00:06]} b6 {[%emt 0:00:11]} 30. Rc6 {[%emt 0:00:05]} Qf5 {[%emt 0:00:03]} 31. Ra1 {[%emt 0:00:05]} Rbe8 {[%emt 0:00:04]} 32. Nh4 {[%emt 0:00:06]} Qe6 {[%emt 0:00:06]} 33. Ra2 {[%emt 0:00:09]} Ne4 {[%emt 0:00:08]} 34. Nf3 {[%emt 0:00:05]} Qf5 {[%emt 0:00:07]} 35. Nh4 {[%emt 0:00:05]} Qe6 {[%emt 0:00:01]} 36. Nf3 {[%emt 0:00:01]} Qf5 {[%emt 0:00:16]} 37. Nh4 {[%emt 0:00:03]} Qe6 {[%emt 0:00:04]} 38. Nf3 {[%emt 0:00:01]} Qf5 {[%emt 0:00:01]} 39. Nh4 {[%emt 0:00:05]} 1/2-1/2

[Event "IMSA Blitz Men 2019"]
[Site "Hengshui"]
[Date "2019.05.17"]
[Round "2.1"]
[White "Le, Quang Liem"]
[Black "Vidit, Santosh Gujrathi"]
[Result "1/2-1/2"]
[ECO "A35"]
[WhiteElo "2704"]
[BlackElo "2707"]
[Annotator "RC"]
[PlyCount "110"]
[EventDate "2019.05.17"]
[EventType "blitz"]
[EventCountry "CHN"]
[SourceTitle "playchess.com"]
[Source "ChessBase"]
[SourceQuality "1"]
[TimeControl "180+2"]

1. Nf3 {[%emt 0:00:00]} Nf6 {[%emt 0:00:00]} 2. c4 {[%emt 0:00:01]} c5 {[%emt 0:00:00]} 3. Nc3 {[%emt 0:00:02]} Nc6 {[%emt 0:00:01]} 4. g3 {[%emt 0:00:05]} d5 {[%emt 0:00:02]} 5. d4 {[%emt 0:00:05]} cxd4 {[%emt 0:00:03]} 6. Nxd4 {[%emt 0:00:02]} dxc4 {[%emt 0:00:01]} 7. Nxc6 {[%emt 0:00:03]} Qxd1+ {[%emt 0:00:02]} 8. Nxd1 {[%emt 0:00:01]} bxc6 {[%emt 0:00:01]} 9. Bg2 {[%emt 0:00:03]} Nd5 {[%emt 0:00:01]} 10. Ne3 {[%emt 0:00:01]} e6 {[%emt 0:00:01]} 11. Nxc4 {[%emt 0:00:02]} Ba6 {[%emt 0:00:01]} 12. b3 {[%emt 0:00:24]} Bb4+ {[%emt 0:00:03]} 13. Bd2 {[%emt 0:00:01]} Ke7 {[%emt 0:00:02]} 14. Rc1 {[%emt 0:00:06]} Rhc8 {[%emt 0:00:22]} 15. Na5 {[%emt 0:00:20]} c5 {[%emt 0:00:33]} 16. Bxb4 {[%emt 0:00:40]} cxb4 {[%emt 0:00:02]} 17. Kd2 {[%emt 0:00:01]} Bb5 {[%emt 0:00:09]} 18. Bxd5 {[%emt 0:00:26]} exd5 {[%emt 0:00:01]} 19. a3 {[%emt 0:00:12]} bxa3 {[%emt 0:00:04]} 20. Rxc8 {[%emt 0:00:01]} Rxc8 {[%emt 0:00:02]} 21. Ra1 {[%emt 0:00:01]} Kd6 {[%emt 0:00:40]} 22. b4 {[%emt 0:00:14]} Rc7 {[%emt 0:00:21]} 23. Rxa3 {[%emt 0:00:02]} a6 {[%emt 0:00:02]} 24. e3 {[%emt 0:00:05]} g5 {[%emt 0:00:12]} 25. Rc3 {[%emt 0:00:20]} Re7 {[%emt 0:00:10]} 26. Rc8 {[%emt 0:00:06]} Re4 {[%emt 0:00:21]} 27. Rd8+ {[%emt 0:00:02]} Ke7 {[%emt 0:00:08]} 28. Rxd5 {[%emt 0:00:02]} Rxb4 {[%emt 0:00:01]} 29. Rxg5 {[%emt 0:00:07]} Rb2+ {[%emt 0:00:03]} 30. Kc3 {[%emt 0:00:02]} Rxf2 {[%emt 0:00:02]} 31. Rh5 {[%emt 0:00:01]} Re2 {[%emt 0:00:08]} 32. Rxh7 {[%emt 0:00:07]} Rxe3+ {[%emt 0:00:01]} 33. Kb4 {[%emt 0:00:03]} Re4+ {[%emt 0:00:04]} 34. Kc5 {[%emt 0:00:01]} Ra4 {[%emt 0:00:06]} 35. Kb6 {[%emt 0:00:03]} Kf6 {[%emt 0:00:03]} 36. h3 {[%emt 0:00:09]} Kg6 {[%emt 0:00:04]} 37. Rh8 {[%emt 0:00:02]} Kg7 {[%emt 0:00:03]} 38. Rh5 {[%emt 0:00:01]} f6 {[%emt 0:00:03]} 39. g4 {[%emt 0:00:04]} Ra3 {[%emt 0:00:02]} 40. Nb7 {[%emt 0:00:03]} Bf1 {[%emt 0:00:09]} 41. g5 {[%emt 0:00:05]} Kg6 {[%emt 0:00:03]} 42. Rh8 {[%emt 0:00:04]} fxg5 {[%emt 0:00:02]} 43. Rg8+ {[%emt 0:00:02]} Kh6 {[%emt 0:00:02]} 44. Rh8+ {[%emt 0:00:03]} Kg7 {[%emt 0:00:01]} 45. Rd8 {[%emt 0:00:01]} Bxh3 {[%emt 0:00:02]} 46. Nc5 {[%emt 0:00:01]} a5 {[%emt 0:00:02]} 47. Rd5 {[%emt 0:00:03]} Kg6 {[%emt 0:00:01]} 48. Ne4 {[%emt 0:00:01]} Bf5 {[%emt 0:00:02]} 49. Rd6+ {[%emt 0:00:02]} Kh5 {[%emt 0:00:02]} 50. Nf6+ {[%emt 0:00:02]} Kh4 {[%emt 0:00:00]} 51. Rd5 {[%emt 0:00:01]} Be6 {[%emt 0:00:04]} 52. Rxa5 {[%emt 0:00:01]} Rxa5 {[%emt 0:00:04]} 53. Kxa5 {[%emt 0:00:01]} Kg3 {[%emt 0:00:02]} 54. Ne4+ {[%emt 0:00:00]} Kf4 {[%emt 0:00:01]} 55. Nxg5 {[%emt 0:00:01]} Kxg5 {[%emt 0:00:00]} 1/2-1/2

[Event "IMSA Blitz Men 2019"]
[Site "Hengshui"]
[Date "2019.05.17"]
[Round "2.1"]
[White "Cheparinov, Ivan"]
[Black "Korobov, Anton"]
[Result "0-1"]
[ECO "D11"]
[WhiteElo "2667"]
[BlackElo "2687"]
[Annotator "ChessBase"]
[PlyCount "46"]
[EventDate "2019.05.17"]
[EventType "blitz"]
[EventCountry "CHN"]
[SourceTitle "playchess.com"]
[Source "ChessBase"]
[SourceQuality "1"]
[TimeControl "180+2"]

1. d4 {[%emt 0:00:00]} d5 {[%emt 0:00:00]} 2. c4 {[%emt 0:00:00]} c6 {[%emt 0:00:01]} 3. Nf3 {[%emt 0:00:01]} Nf6 {[%emt 0:00:01]} 4. g3 {[%emt 0:00:01]} Bg4 {[%emt 0:00:06]} 5. Ne5 {[%emt 0:00:11]} Bf5 {[%emt 0:00:04]} 6. cxd5 {[%emt 0:00:10]} cxd5 {[%emt 0:00:07]} 7. Nc3 {[%emt 0:00:08]} e6 {[%emt 0:00:08]} 8. f3 {[%emt 0:00:17]} Nfd7 {[%emt 0:00:50]} 9. Nxd7 {[%emt 0:00:32]} Nxd7 {[%emt 0:00:03]} 10. e4 {[%emt 0:00:01]} dxe4 {[%emt 0:00:04]} 11. fxe4 {[%emt 0:00:01]} Bg6 {[%emt 0:00:01]} 12. e5 {[%emt 0:00:19]} Qb6 {[%emt 0:00:15]} 13. Bg2 {[%emt 0:00:11]} Rd8 {[%emt 0:00:02]} 14. Qa4 {[%emt 0:00:17]} Bb4 {[%emt 0:00:17]} 15. a3 {[%emt 0:00:15]} Bxc3+ {[%emt 0:00:21]} 16. bxc3 {[%emt 0:00:01]} O-O {[%emt 0:00:01]} 17. Qb4 {[%emt 0:00:17]} Qa6 {[%emt 0:00:02]} 18. Bf4 {[%emt 0:00:18]} Nb6 {[%emt 0:00:07]} 19. Kf2 {[%emt 0:00:06]} Nd5 {[%emt 0:00:05]} 20. Bxd5 {[%emt 0:00:06]} Rxd5 {[%emt 0:00:02]} 21. Rhe1 {[%emt 0:00:05]} Rb5 {[%emt 0:00:07]} 22. Qd6 {[%emt 0:00:02]} Rb2+ {[%emt 0:00:02]} 23. Kg1 {[%emt 0:00:05]} Qd3 {[%emt 0:00:01]} 0-1

[Event "IMSA Blitz Men 2019"]
[Site "Hengshui"]
[Date "2019.05.17"]
[Round "2.2"]
[White "Yu, Yangyi"]
[Black "Ponomariov, Ruslan"]
[Result "1/2-1/2"]
[ECO "B12"]
[WhiteElo "2739"]
[BlackElo "2675"]
[Annotator "ChessBase"]
[PlyCount "110"]
[EventDate "2019.05.17"]
[EventType "blitz"]
[EventCountry "CHN"]
[SourceTitle "playchess.com"]
[Source "ChessBase"]
[SourceQuality "1"]
[TimeControl "180+2"]

1. e4 {[%emt 0:00:00]} c6 {[%emt 0:00:00]} 2. d4 {[%emt 0:00:00]} d5 {[%emt 0:00:00]} 3. e5 {[%emt 0:00:01]} c5 {[%emt 0:00:00]} 4. dxc5 {[%emt 0:00:01]} e6 {[%emt 0:00:01]} 5. Nf3 {[%emt 0:00:01]} Bxc5 {[%emt 0:00:02]} 6. Bd3 {[%emt 0:00:01]} Nc6 {[%emt 0:00:02]} 7. O-O {[%emt 0:00:01]} f6 {[%emt 0:00:04]} 8. Qe2 {[%emt 0:00:36]} fxe5 {[%emt 0:00:05]} 9. Nxe5 {[%emt 0:00:01]} Nf6 {[%emt 0:00:01]} 10. Bg5 {[%emt 0:00:04]} O-O {[%emt 0:00:05]} 11. Nxc6 {[%emt 0:00:17]} bxc6 12. Nd2 Bd6 {[%emt 0:01:08]} 13. Nf3 {[%emt 0:00:02]} Qc7 {[%emt 0:00:02]} 14. Rae1 {[%emt 0:00:01]} Ng4 {[%emt 0:00:11]} 15. h3 {[%emt 0:00:05]} Nh2 {[%emt 0:00:15]} 16. Nxh2 {[%emt 0:00:02]} Bxh2+ 17. Kh1 Bf4 {[%emt 0:00:07]} 18. Bxf4 {[%emt 0:00:19]} Qxf4 {[%emt 0:00:02]} 19. Qe5 {[%emt 0:00:08]} Bd7 {[%emt 0:00:07]} 20. g3 {[%emt 0:00:09]} Qxe5 {[%emt 0:00:07]} 21. Rxe5 {[%emt 0:00:01]} a5 {[%emt 0:00:06]} 22. f4 {[%emt 0:00:07]} g6 {[%emt 0:00:06]} 23. Kg2 {[%emt 0:00:02]} Rfb8 {[%emt 0:00:04]} 24. b3 {[%emt 0:00:01]} a4 {[%emt 0:00:01]} 25. h4 {[%emt 0:00:09]} axb3 {[%emt 0:00:02]} 26. axb3 {[%emt 0:00:00]} Ra2 {[%emt 0:00:09]} 27. Rf2 {[%emt 0:00:04]} c5 {[%emt 0:00:09]} 28. h5 {[%emt 0:00:03]} Kg7 {[%emt 0:00:01]} 29. hxg6 {[%emt 0:00:13]} hxg6 {[%emt 0:00:01]} 30. Rg5 {[%emt 0:00:01]} Be8 {[%emt 0:00:00]} 31. g4 {[%emt 0:00:03]} Kf6 {[%emt 0:00:04]} 32. Re5 {[%emt 0:00:04]} Bf7 {[%emt 0:00:04]} 33. Kg3 {[%emt 0:00:06]} Rh8 {[%emt 0:00:04]} 34. Rfe2 {[%emt 0:00:18]} Rh1 {[%emt 0:00:02]} 35. g5+ {[%emt 0:00:01]} Kg7 {[%emt 0:00:01]} 36. Rxe6 {[%emt 0:00:06]} Bxe6 {[%emt 0:00:07]} 37. Rxe6 {[%emt 0:00:00]} c4 {[%emt 0:00:07]} 38. bxc4 {[%emt 0:00:13]} dxc4 {[%emt 0:00:01]} 39. Rxg6+ {[%emt 0:00:03]} Kf8 {[%emt 0:00:01]} 40. Be4 {[%emt 0:00:14]} Re1 {[%emt 0:00:02]} 41. Re6 {[%emt 0:00:07]} Rg1+ {[%emt 0:00:12]} 42. Kf2 {[%emt 0:00:02]} Raa1 {[%emt 0:00:03]} 43. Ke3 {[%emt 0:00:06]} Rad1 {[%emt 0:00:02]} 44. f5 {[%emt 0:00:04]} Rxg5 {[%emt 0:00:02]} 45. Kf4 {[%emt 0:00:02]} Rg7 {[%emt 0:00:05]} 46. f6 {[%emt 0:00:03]} Rf1+ {[%emt 0:00:03]} 47. Ke5 {[%emt 0:00:13]} Rg5+ {[%emt 0:00:02]} 48. Kd4 {[%emt 0:00:01]} Rg4 {[%emt 0:00:05]} 49. Kxc4 {[%emt 0:00:07]} Rgf4 {[%emt 0:00:01]} 50. Kd4 {[%emt 0:00:06]} Rxf6 {[%emt 0:00:01]} 51. Rxf6+ {[%emt 0:00:01]} Rxf6 {[%emt 0:00:01]} 52. c4 {[%emt 0:00:01]} Ke7 {[%emt 0:00:01]} 53. c5 {[%emt 0:00:00]} Kd7 {[%emt 0:00:01]} 54. c6+ {[%emt 0:00:02]} Rxc6 55. Bxc6+ {[%emt 0:00:00]} Kxc6 {[%emt 0:00:01]} 1/2-1/2

[Event "IMSA Blitz Men 2019"]
[Site "Hengshui"]
[Date "2019.05.17"]
[Round "2.2"]
[White "Wang, Hao"]
[Black "Dominguez Perez, Leinier"]
[Result "1/2-1/2"]
[ECO "C48"]
[WhiteElo "2735"]
[BlackElo "2750"]
[Annotator "ChessBase"]
[PlyCount "105"]
[EventDate "2019.05.17"]
[EventType "blitz"]
[EventCountry "CHN"]
[SourceTitle "playchess.com"]
[Source "ChessBase"]
[SourceQuality "1"]
[TimeControl "180+2"]

1. e4 {[%emt 0:00:00]} e5 {[%emt 0:00:00]} 2. Nf3 {[%emt 0:00:01]} Nc6 {[%emt 0:00:00]} 3. Bb5 {[%emt 0:00:02]} Nf6 {[%emt 0:00:00]} 4. Nc3 {[%emt 0:00:01]} Nd4 {[%emt 0:00:02]} 5. Ba4 {[%emt 0:00:03]} c6 {[%emt 0:00:01]} 6. d3 {[%emt 0:00:05]} a5 {[%emt 0:00:09]} 7. Bb3 {[%emt 0:00:06]} d6 {[%emt 0:00:16]} 8. h3 {[%emt 0:00:05]} b5 {[%emt 0:00:32]} 9. a3 {[%emt 0:00:09]} Nxb3 {[%emt 0:00:02]} 10. cxb3 {[%emt 0:00:02]} Be7 {[%emt 0:00:04]} 11. O-O {[%emt 0:00:02]} O-O {[%emt 0:00:02]} 12. d4 {[%emt 0:00:02]} Qc7 {[%emt 0:00:11]} 13. Qc2 {[%emt 0:00:13]} Ba6 {[%emt 0:00:22]} 14. Rd1 {[%emt 0:00:08]} b4 {[%emt 0:00:12]} 15. axb4 {[%emt 0:00:17]} axb4 {[%emt 0:00:01]} 16. Na4 {[%emt 0:00:02]} exd4 {[%emt 0:00:34]} 17. Nxd4 {[%emt 0:00:02]} c5 {[%emt 0:00:00]} 18. Nf5 {[%emt 0:00:01]} Bb7 {[%emt 0:00:01]} 19. f3 {[%emt 0:00:34]} Rfe8 {[%emt 0:00:37]} 20. Bf4 {[%emt 0:00:07]} Rad8 {[%emt 0:00:03]} 21. Qf2 {[%emt 0:00:28]} Bf8 {[%emt 0:00:08]} 22. Bg5 {[%emt 0:00:09]} Re6 {[%emt 0:00:01]} 23. Rac1 {[%emt 0:00:10]} Rde8 {[%emt 0:00:02]} 24. Bf4 {[%emt 0:00:06]} Nd7 {[%emt 0:00:14]} 25. Rd2 {[%emt 0:00:20]} Ne5 {[%emt 0:00:01]} 26. Rcd1 {[%emt 0:00:01]} Bc6 {[%emt 0:00:07]} 27. Ne3 {[%emt 0:00:07]} g6 {[%emt 0:00:07]} 28. Bxe5 {[%emt 0:00:04]} Rxe5 {[%emt 0:00:02]} 29. Nc4 {[%emt 0:00:01]} R5e6 {[%emt 0:00:01]} 30. Qg3 {[%emt 0:00:08]} Bg7 {[%emt 0:00:02]} 31. Nab6 {[%emt 0:00:13]} Bd4+ {[%emt 0:00:03]} 32. Rxd4 {[%emt 0:00:02]} cxd4 {[%emt 0:00:01]} 33. Rxd4 {[%emt 0:00:02]} Bb7 {[%emt 0:00:02]} 34. Kh1 {[%emt 0:00:03]} Qc5 {[%emt 0:00:00]} 35. Rd1 {[%emt 0:00:01]} Ba6 {[%emt 0:00:04]} 36. Qf4 {[%emt 0:00:05]} Bxc4 {[%emt 0:00:02]} 37. Nxc4 {[%emt 0:00:01]} Rd8 {[%emt 0:00:04]} 38. Ne3 {[%emt 0:00:02]} Qe5 {[%emt 0:00:01]} 39. Qh4 {[%emt 0:00:02]} Rf8 {[%emt 0:00:03]} 40. Nc4 {[%emt 0:00:01]} Qc5 {[%emt 0:00:01]} 41. Rd5 {[%emt 0:00:02]} Qa7 {[%emt 0:00:03]} 42. Qe1 {[%emt 0:00:02]} Qa6 {[%emt 0:00:02]} 43. Qxb4 {[%emt 0:00:02]} f5 {[%emt 0:00:02]} 44. exf5 {[%emt 0:00:05]} Rxf5 {[%emt 0:00:01]} 45. Rxf5 gxf5 {[%emt 0:00:00]} 46. Qb8+ {[%emt 0:00:05]} Kf7 {[%emt 0:00:02]} 47. Qc7+ {[%emt 0:00:01]} Kg6 {[%emt 0:00:03]} 48. Qd7 {[%emt 0:00:03]} Rf6 {[%emt 0:00:05]} 49. Qe8+ {[%emt 0:00:01]} Kg7 {[%emt 0:00:00]} 50. Qe7+ {[%emt 0:00:01]} Kg6 {[%emt 0:00:02]} 51. Qe8+ Kg7 52. Qe7+ {[%emt 0:00:04]} Kg6 {[%emt 0:00:00]} 53. Qe8+ {[%emt 0:00:02]} 1/2-1/2

[Event "IMSA Blitz Men 2019"]
[Site "Hengshui"]
[Date "2019.05.17"]
[Round "2.2"]
[White "Vidit, Santosh Gujrathi"]
[Black "Le, Quang Liem"]
[Result "1/2-1/2"]
[ECO "A40"]
[WhiteElo "2707"]
[BlackElo "2704"]
[Annotator "ChessBase"]
[PlyCount "161"]
[EventDate "2019.05.17"]
[EventType "blitz"]
[EventCountry "CHN"]
[SourceTitle "playchess.com"]
[Source "ChessBase"]
[SourceQuality "1"]
[TimeControl "180+2"]

1. d4 {[%emt 0:00:00]} Nf6 {[%emt 0:00:01]} 2. c4 {[%emt 0:00:01]} e6 {[%emt 0:00:01]} 3. g3 {[%emt 0:00:02]} c5 {[%emt 0:00:01]} 4. Nf3 {[%emt 0:00:01]} cxd4 {[%emt 0:00:02]} 5. Nxd4 {[%emt 0:00:01]} Qc7 {[%emt 0:00:01]} 6. Nc3 {[%emt 0:00:01]} a6 {[%emt 0:00:01]} 7. Bg2 {[%emt 0:00:01]} Qxc4 {[%emt 0:00:02]} 8. O-O {[%emt 0:00:02]} Nc6 {[%emt 0:00:01]} 9. Nb3 {[%emt 0:00:01]} d5 {[%emt 0:00:01]} 10. Bf4 {[%emt 0:00:02]} Be7 {[%emt 0:00:03]} 11. Rc1 {[%emt 0:00:01]} Qb4 {[%emt 0:00:01]} 12. a3 {[%emt 0:00:04]} Qb6 {[%emt 0:00:01]} 13. e4 {[%emt 0:00:01]} dxe4 {[%emt 0:00:01]} 14. Be3 {[%emt 0:00:01]} Qc7 {[%emt 0:00:05]} 15. Nc5 {[%emt 0:00:02]} O-O {[%emt 0:00:11]} 16. N5xe4 {[%emt 0:00:02]} Rd8 {[%emt 0:00:06]} 17. Qb3 {[%emt 0:00:15]} Nxe4 18. Nxe4 Rd5 {[%emt 0:00:34]} 19. Nc5 {[%emt 0:00:51]} Rd8 {[%emt 0:00:23]} 20. Na4 {[%emt 0:00:05]} Re8 {[%emt 0:00:33]} 21. Rfd1 {[%emt 0:00:22]} Rb8 {[%emt 0:00:14]} 22. Nb6 {[%emt 0:00:17]} h6 {[%emt 0:00:16]} 23. h4 {[%emt 0:00:06]} Bf8 {[%emt 0:00:11]} 24. Qa4 {[%emt 0:00:15]} e5 {[%emt 0:00:16]} 25. Nd5 {[%emt 0:00:05]} Qd6 {[%emt 0:00:04]} 26. Nb4 {[%emt 0:00:39]} Qe6 {[%emt 0:00:16]} 27. Nxc6 {[%emt 0:00:08]} bxc6 {[%emt 0:00:01]} 28. Rxc6 {[%emt 0:00:02]} Qb3 {[%emt 0:00:02]} 29. Qxb3 {[%emt 0:00:05]} Rxb3 {[%emt 0:00:01]} 30. Rd2 {[%emt 0:00:04]} Bb7 {[%emt 0:00:05]} 31. Rb6 {[%emt 0:00:11]} Rxb6 {[%emt 0:00:01]} 32. Bxb6 {[%emt 0:00:00]} Bxg2 {[%emt 0:00:01]} 33. Kxg2 {[%emt 0:00:01]} f6 {[%emt 0:00:03]} 34. b4 {[%emt 0:00:02]} Kf7 {[%emt 0:00:02]} 35. Rd7+ {[%emt 0:00:04]} Re7 {[%emt 0:00:01]} 36. Rd8 {[%emt 0:00:04]} Re6 {[%emt 0:00:02]} 37. Be3 {[%emt 0:00:02]} Rc6 {[%emt 0:00:03]} 38. Ra8 {[%emt 0:00:02]} h5 {[%emt 0:00:02]} 39. Kf3 {[%emt 0:00:02]} Be7 {[%emt 0:00:04]} 40. Ra7 {[%emt 0:00:02]} Ke6 {[%emt 0:00:01]} 41. Ke2 {[%emt 0:00:01]} g6 {[%emt 0:00:06]} 42. Kd3 {[%emt 0:00:02]} f5 {[%emt 0:00:02]} 43. Rb7 {[%emt 0:00:02]} e4+ {[%emt 0:00:03]} 44. Kd2 {[%emt 0:00:02]} Bf6 {[%emt 0:00:02]} 45. a4 {[%emt 0:00:03]} Bc3+ {[%emt 0:00:03]} 46. Ke2 {[%emt 0:00:01]} Rc4 {[%emt 0:00:03]} 47. Rb6+ {[%emt 0:00:01]} Kf7 {[%emt 0:00:01]} 48. b5 {[%emt 0:00:08]} axb5 {[%emt 0:00:04]} 49. axb5 {[%emt 0:00:02]} Rb4 {[%emt 0:00:07]} 50. Rc6 {[%emt 0:00:01]} Rb3 {[%emt 0:00:05]} 51. b6 {[%emt 0:00:02]} Ba5 {[%emt 0:00:02]} 52. Bd4 {[%emt 0:00:01]} Rb1 {[%emt 0:00:02]} 53. Ke3 {[%emt 0:00:05]} Rb4 {[%emt 0:00:04]} 54. Rf6+ {[%emt 0:00:04]} Ke7 {[%emt 0:00:02]} 55. Rxg6 {[%emt 0:00:01]} Rb3+ {[%emt 0:00:03]} 56. Kf4 {[%emt 0:00:02]} Rb5 {[%emt 0:00:02]} 57. Rg5 {[%emt 0:00:03]} Bd2+ {[%emt 0:00:02]} 58. Be3 {[%emt 0:00:01]} Bxe3+ {[%emt 0:00:04]} 59. fxe3 {[%emt 0:00:01]} Kf6 {[%emt 0:00:00]} 60. Rxh5 {[%emt 0:00:01]} Ke6 {[%emt 0:00:04]} 61. g4 {[%emt 0:00:01]} Rb1 {[%emt 0:00:03]} 62. gxf5+ {[%emt 0:00:02]} Kd5 {[%emt 0:00:01]} 63. f6+ {[%emt 0:00:04]} Ke6 {[%emt 0:00:01]} 64. Kxe4 {[%emt 0:00:02]} Rxb6 {[%emt 0:00:01]} 65. Rh6 {[%emt 0:00:03]} Rb4+ {[%emt 0:00:03]} 66. Kf3 {[%emt 0:00:01]} Rb3 {[%emt 0:00:02]} 67. Kf4 {[%emt 0:00:01]} Rb1 {[%emt 0:00:01]} 68. e4 {[%emt 0:00:04]} Rf1+ {[%emt 0:00:02]} 69. Kg5 {[%emt 0:00:01]} Rg1+ {[%emt 0:00:01]} 70. Kh5 {[%emt 0:00:01]} Kf7 {[%emt 0:00:02]} 71. e5 {[%emt 0:00:01]} Re1 {[%emt 0:00:01]} 72. Rh7+ {[%emt 0:00:01]} Kf8 {[%emt 0:00:04]} 73. Re7 {[%emt 0:00:01]} Rg1 {[%emt 0:00:03]} 74. Kh6 {[%emt 0:00:02]} Rg4 {[%emt 0:00:04]} 75. h5 {[%emt 0:00:01]} Rg1 {[%emt 0:00:01]} 76. e6 {[%emt 0:00:03]} Rf1 {[%emt 0:00:03]} 77. Rf7+ Ke8 78. Kh7 {[%emt 0:00:06]} Rf5 {[%emt 0:00:02]} 79. Kg6 {[%emt 0:00:03]} Rf1 {[%emt 0:00:03]} 80. Ra7 {[%emt 0:00:00]} Rg1+ {[%emt 0:00:01]} 81. Kh6 {[%emt 0:00:01]} 1/2-1/2

[Event "IMSA Blitz Men 2019"]
[Site "Hengshui"]
[Date "2019.05.17"]
[Round "2.2"]
[White "Jones, Gawain C B"]
[Black "Bu, Xiangzhi"]
[Result "0-1"]
[ECO "C55"]
[WhiteElo "2702"]
[BlackElo "2729"]
[Annotator "ChessBase"]
[PlyCount "60"]
[EventDate "2019.05.17"]
[EventType "blitz"]
[EventCountry "CHN"]
[SourceTitle "playchess.com"]
[Source "ChessBase"]
[SourceQuality "1"]
[TimeControl "180+2"]

1. e4 {[%emt 0:00:00]} e5 {[%emt 0:00:00]} 2. d4 {[%emt 0:00:00]} exd4 {[%emt 0:00:01]} 3. Nf3 {[%emt 0:00:01]} Nc6 {[%emt 0:00:02]} 4. Bc4 {[%emt 0:00:03]} Nf6 {[%emt 0:00:02]} 5. e5 {[%emt 0:00:02]} d5 {[%emt 0:00:01]} 6. Bb5 {[%emt 0:00:01]} Ne4 {[%emt 0:00:02]} 7. Nxd4 {[%emt 0:00:01]} Bd7 {[%emt 0:00:01]} 8. Bxc6 {[%emt 0:00:07]} bxc6 {[%emt 0:00:01]} 9. O-O {[%emt 0:00:07]} Bc5 {[%emt 0:00:01]} 10. f3 {[%emt 0:00:06]} Ng5 {[%emt 0:00:01]} 11. Be3 {[%emt 0:00:02]} O-O {[%emt 0:00:02]} 12. Nc3 {[%emt 0:00:19]} f6 {[%emt 0:00:22]} 13. exf6 {[%emt 0:00:19]} Qxf6 {[%emt 0:00:04]} 14. Qd2 {[%emt 0:00:02]} Nf7 {[%emt 0:00:41]} 15. Nb3 {[%emt 0:00:09]} Bd6 {[%emt 0:00:06]} 16. f4 {[%emt 0:00:15]} Nh6 {[%emt 0:00:05]} 17. Bd4 {[%emt 0:00:04]} Bxf4 {[%emt 0:00:42]} 18. Bxf6 {[%emt 0:00:27]} Bxd2 {[%emt 0:00:01]} 19. Nxd2 {[%emt 0:00:41]} Rxf6 {[%emt 0:00:01]} 20. Rxf6 gxf6 {[%emt 0:00:01]} 21. Na4 {[%emt 0:00:10]} Re8 {[%emt 0:00:05]} 22. Nc5 {[%emt 0:00:06]} Bf5 {[%emt 0:00:01]} 23. Nf3 {[%emt 0:00:07]} Bxc2 {[%emt 0:00:06]} 24. Nd4 {[%emt 0:00:01]} Bg6 {[%emt 0:00:02]} 25. a4 {[%emt 0:00:11]} Nf5 {[%emt 0:00:05]} 26. Nxc6 {[%emt 0:00:01]} Re2 {[%emt 0:00:06]} 27. Nxa7 {[%emt 0:00:13]} Nh4 {[%emt 0:00:35]} 28. Nc6 {[%emt 0:00:01]} Rxg2+ {[%emt 0:00:01]} 29. Kh1 {[%emt 0:00:04]} Rxb2 {[%emt 0:00:01]} 30. a5 {[%emt 0:00:09]} Nf3 {[%emt 0:00:01]} 0-1